[Event "Titled Tuesday Blitz May 4 2021"]
[White "Suvorov, Luca"]
[Black "Schmidt, Harald"]
[WhiteFideId "12977071"]
[BlackFideId "4648358"]
[WhiteElo "2127"]
[BlackElo "2289"]
[Result "0-1"]
[Round "04"]
[TimeControl "180+1"]
[Date "2021.05.04"]
[WhiteClock "0:00:02"]
[BlackClock "0:00:45"]

1. d4 {[%clk 0:03:00]}  a6 {[%clk 0:02:57]} 2. e4 {[%clk 0:02:58]}  b5 {[%clk 0:02:56]} 3. a4 {[%clk 0:02:57]}  Bb7 {[%clk 0:02:52]} 4. f3 {[%clk 0:02:55]}  b4 {[%clk 0:02:50]} 5. Bd3 {[%clk 0:02:53]}  g6 {[%clk 0:02:45]} 6. Ne2 {[%clk 0:02:51]}  Bg7 {[%clk 0:02:44]} 7. O-O {[%clk 0:02:50]}  d6 {[%clk 0:02:37]} 8. a5 {[%clk 0:02:47]}  Nd7 {[%clk 0:02:32]} 9. c3 {[%clk 0:02:46]}  bxc3 {[%clk 0:02:31]} 10. bxc3 {[%clk 0:02:47]}  Ngf6 {[%clk 0:02:25]} 11. Be3 {[%clk 0:02:43]}  O-O {[%clk 0:02:24]} 12. Qd2 {[%clk 0:02:42]}  Re8 {[%clk 0:02:21]} 13. Na3 {[%clk 0:02:41]}  c5 {[%clk 0:02:18]} 14. Rfb1 {[%clk 0:02:09]}  Rb8 {[%clk 0:02:16]} 15. Nc4 {[%clk 0:01:57]}  d5 {[%clk 0:02:16]} 16. exd5 {[%clk 0:01:31]}  Nxd5 {[%clk 0:02:15]} 17. Bh6 {[%clk 0:01:30]}  Bf6 {[%clk 0:02:03]} 18. Be4 {[%clk 0:01:29]}  Qc7 {[%clk 0:01:52]} 19. Bf4 {[%clk 0:01:25]}  Nxf4 {[%clk 0:01:50]} 20. Nxf4 {[%clk 0:01:19]}  Bxe4 {[%clk 0:01:50]} 21. fxe4 {[%clk 0:01:20]}  cxd4 {[%clk 0:01:50]} 22. cxd4 {[%clk 0:01:19]}  Qxc4 {[%clk 0:01:49]} 23. e5 {[%clk 0:01:19]}  Bg7 {[%clk 0:01:47]} 24. Rc1 {[%clk 0:01:18]}  Qb4 {[%clk 0:01:37]} 25. Qf2 {[%clk 0:01:12]}  Rec8 {[%clk 0:01:31]} 26. Kh1 {[%clk 0:01:08]}  Rc4 {[%clk 0:01:24]} 27. e6 {[%clk 0:00:52]}  fxe6 {[%clk 0:01:23]} 28. Nxe6 {[%clk 0:00:51]}  Bf6 {[%clk 0:01:21]} 29. Qf3 {[%clk 0:00:44]}  Rxc1+ {[%clk 0:01:18]} 30. Rxc1 {[%clk 0:00:44]}  Qxa5 {[%clk 0:01:18]} 31. Qc6 {[%clk 0:00:42]}  Nf8 {[%clk 0:01:09]} 32. Nc5 {[%clk 0:00:42]}  Qc3 {[%clk 0:00:59]} 33. Rd1 {[%clk 0:00:34]}  Rd8 {[%clk 0:00:55]} 34. d5 {[%clk 0:00:31]}  Rd6 {[%clk 0:00:46]} 35. Qc8 {[%clk 0:00:19]}  Rxd5 {[%clk 0:00:45]} 36. Rf1 {[%clk 0:00:02]} 0-1


[Site "https://www.chess.com"]

[Event "Titled Tuesday Blitz May 4 2021"]
[White "Svidler, Peter"]
[Black "Trent, Lawrence"]
[WhiteFideId "4102142"]
[BlackFideId "408638"]
[WhiteElo "2943"]
[BlackElo "2566"]
[Result "1-0"]
[Round "04"]
[TimeControl "180+1"]
[Date "2021.05.04"]
[WhiteClock "0:02:26"]
[BlackClock "0:01:09"]

1. e4 {[%clk 0:03:00]}  d5 {[%clk 0:02:58]} 2. exd5 {[%clk 0:02:56]}  Qxd5 {[%clk 0:02:57]} 3. Nf3 {[%clk 0:02:55]}  Nf6 {[%clk 0:02:57]} 4. Be2 {[%clk 0:02:55]}  Bg4 {[%clk 0:02:54]} 5. h3 {[%clk 0:02:54]}  Bxf3 {[%clk 0:02:52]} 6. Bxf3 {[%clk 0:02:54]}  Qe5+ {[%clk 0:02:52]} 7. Qe2 {[%clk 0:02:52]}  Qxe2+ {[%clk 0:02:51]} 8. Kxe2 {[%clk 0:02:53]}  c6 {[%clk 0:02:52]} 9. d4 {[%clk 0:02:53]}  Nbd7 {[%clk 0:02:52]} 10. Re1 {[%clk 0:02:52]}  e6 {[%clk 0:02:52]} 11. Nd2 {[%clk 0:02:51]}  Bd6 {[%clk 0:02:49]} 12. Nc4 {[%clk 0:02:51]}  Bc7 {[%clk 0:02:49]} 13. a4 {[%clk 0:02:51]}  a5 {[%clk 0:02:46]} 14. Kf1 {[%clk 0:02:51]}  Nb6 {[%clk 0:02:45]} 15. Ne5 {[%clk 0:02:49]}  Nbd7 {[%clk 0:02:36]} 16. Nd3 {[%clk 0:02:49]}  O-O {[%clk 0:02:34]} 17. c3 {[%clk 0:02:49]}  Rfd8 {[%clk 0:02:33]} 18. g3 {[%clk 0:02:46]}  Nd5 {[%clk 0:02:29]} 19. Kg2 {[%clk 0:02:45]}  N7b6 {[%clk 0:02:25]} 20. Bg5 {[%clk 0:02:42]}  f6 {[%clk 0:02:20]} 21. Bc1 {[%clk 0:02:41]}  e5 {[%clk 0:01:57]} 22. dxe5 {[%clk 0:02:40]}  Nxc3 {[%clk 0:01:53]} 23. Nc5 {[%clk 0:02:40]}  Ncd5 {[%clk 0:01:50]} 24. exf6 {[%clk 0:02:39]}  Nd7 {[%clk 0:01:13]} 25. Ne6 {[%clk 0:02:26]}  Re8 {[%clk 0:01:09]} 1-0


[Site "https://www.chess.com"]

[Event "Titled Tuesday Blitz May 4 2021"]
[White "Sviridova, Vlada"]
[Black "Pajeken, Jakob Leon"]
[WhiteFideId "24109606"]
[BlackFideId "12942839"]
[WhiteElo "2101"]
[BlackElo "2024"]
[Result "1-0"]
[Round "04"]
[TimeControl "180+1"]
[Date "2021.05.04"]
[WhiteClock "0:00:14"]
[BlackClock "0:00:44"]

1. d4 {[%clk 0:03:00]}  d5 {[%clk 0:02:50]} 2. c4 {[%clk 0:03:00]}  dxc4 {[%clk 0:02:51]} 3. Nf3 {[%clk 0:02:59]}  Nf6 {[%clk 0:02:51]} 4. e3 {[%clk 0:02:59]}  c5 {[%clk 0:02:50]} 5. Bxc4 {[%clk 0:02:59]}  e6 {[%clk 0:02:51]} 6. O-O {[%clk 0:02:59]}  Nc6 {[%clk 0:02:50]} 7. Qe2 {[%clk 0:02:38]}  a6 {[%clk 0:02:48]} 8. a4 {[%clk 0:02:33]}  Be7 {[%clk 0:02:41]} 9. Rd1 {[%clk 0:02:32]}  Qc7 {[%clk 0:02:40]} 10. dxc5 {[%clk 0:02:28]}  Bxc5 {[%clk 0:02:38]} 11. b3 {[%clk 0:02:27]}  O-O {[%clk 0:02:25]} 12. Bb2 {[%clk 0:02:27]}  e5 {[%clk 0:02:24]} 13. h3 {[%clk 0:02:11]}  h6 {[%clk 0:02:22]} 14. Nc3 {[%clk 0:02:09]}  Bf5 {[%clk 0:02:19]} 15. Nd5 {[%clk 0:02:01]}  Nxd5 {[%clk 0:02:18]} 16. Bxd5 {[%clk 0:02:01]}  Rfe8 {[%clk 0:02:18]} 17. Rac1 {[%clk 0:01:49]}  Bb6 {[%clk 0:01:56]} 18. e4 {[%clk 0:01:23]}  Bd7 {[%clk 0:01:52]} 19. Qc4 {[%clk 0:01:19]}  Be6 {[%clk 0:01:43]} 20. Nxe5 {[%clk 0:00:32]}  Rac8 {[%clk 0:01:32]} 21. Nxc6 {[%clk 0:00:30]}  Bxd5 {[%clk 0:01:26]} 22. exd5 {[%clk 0:00:27]}  bxc6 {[%clk 0:01:26]} 23. d6 {[%clk 0:00:26]}  Qd7 {[%clk 0:01:23]} 24. Qc3 {[%clk 0:00:25]}  f6 {[%clk 0:01:22]} 25. a5 {[%clk 0:00:24]}  Ba7 {[%clk 0:01:21]} 26. Qc4+ {[%clk 0:00:23]}  Kh8 {[%clk 0:01:21]} 27. Bd4 {[%clk 0:00:19]}  Bxd4 {[%clk 0:01:19]} 28. Qxd4 {[%clk 0:00:19]}  Re5 {[%clk 0:01:16]} 29. b4 {[%clk 0:00:19]}  Rd5 {[%clk 0:01:15]} 30. Qf4 {[%clk 0:00:17]}  Rxd1+ {[%clk 0:01:12]} 31. Rxd1 {[%clk 0:00:17]}  c5 {[%clk 0:01:13]} 32. Qc4 {[%clk 0:00:17]}  cxb4 {[%clk 0:01:08]} 33. Qxb4 {[%clk 0:00:16]}  Rc6 {[%clk 0:01:08]} 34. Qb8+ {[%clk 0:00:16]}  Kh7 {[%clk 0:01:08]} 35. Qb1+ {[%clk 0:00:16]}  g6 {[%clk 0:01:08]} 36. Qb4 {[%clk 0:00:16]}  Kg7 {[%clk 0:01:05]} 37. Qd4 {[%clk 0:00:16]}  h5 {[%clk 0:01:02]} 38. Qd5 {[%clk 0:00:16]}  h4 {[%clk 0:01:01]} 39. Qxc6 {[%clk 0:00:16]}  Qxc6 {[%clk 0:00:57]} 40. d7 {[%clk 0:00:16]}  Qb5 {[%clk 0:00:55]} 41. d8=Q {[%clk 0:00:15]}  Kh6 {[%clk 0:00:55]} 42. Qh8+ {[%clk 0:00:15]}  Kg5 {[%clk 0:00:54]} 43. Qd8 {[%clk 0:00:15]}  Qe2 {[%clk 0:00:53]} 44. Rf1 {[%clk 0:00:14]}  Qb5 {[%clk 0:00:44]} 45. Qb6 {[%clk 0:00:14]}  Qe2 {[%clk 0:00:42]} 46. Qc5+ {[%clk 0:00:14]}  Kh6 {[%clk 0:00:41]} 47. Qd4 {[%clk 0:00:14]}  Kg5 {[%clk 0:00:38]} 48. Qe3+ {[%clk 0:00:14]}  Qxe3 {[%clk 0:00:37]} 49. fxe3 {[%clk 0:00:14]}  f5 {[%clk 0:00:38]} 50. Rb1 {[%clk 0:00:14]}  Kf6 {[%clk 0:00:38]} 51. Rb6+ {[%clk 0:00:14]}  Ke5 {[%clk 0:00:39]} 52. Rxa6 {[%clk 0:00:14]}  Ke4 {[%clk 0:00:40]} 53. Rxg6 {[%clk 0:00:14]}  Kxe3 {[%clk 0:00:41]} 54. Rf6 {[%clk 0:00:14]}  Kf4 {[%clk 0:00:42]} 55. a6 {[%clk 0:00:14]}  Kg3 {[%clk 0:00:43]} 56. a7 {[%clk 0:00:14]}  f4 {[%clk 0:00:44]} 57. Rg6# {[%clk 0:00:14]} 1-0


[Site "https://www.chess.com"]

[Event "Titled Tuesday Blitz May 4 2021"]
[White "Tarasova, Viktoriya"]
[Black "katchesskat"]
[WhiteFideId "4175840"]
[WhiteElo "2182"]
[BlackElo "2264"]
[Result "1-0"]
[Round "04"]
[TimeControl "180+1"]
[Date "2021.05.04"]
[WhiteClock "0:00:16"]
[BlackClock "0:00:15"]

1. d4 {[%clk 0:03:00]}  c5 {[%clk 0:03:00]} 2. d5 {[%clk 0:02:59]}  e5 {[%clk 0:03:00]} 3. Nc3 {[%clk 0:02:59]}  a6 {[%clk 0:03:00]} 4. a4 {[%clk 0:02:58]}  d6 {[%clk 0:03:00]} 5. e4 {[%clk 0:02:58]}  Ne7 {[%clk 0:03:00]} 6. Nf3 {[%clk 0:02:59]}  Bg4 {[%clk 0:02:59]} 7. Bd3 {[%clk 0:02:59]}  Ng6 {[%clk 0:02:58]} 8. h3 {[%clk 0:02:58]}  Bxf3 {[%clk 0:02:57]} 9. Qxf3 {[%clk 0:02:58]}  Be7 {[%clk 0:02:58]} 10. g3 {[%clk 0:02:57]}  Bg5 {[%clk 0:02:57]} 11. h4 {[%clk 0:02:54]}  Bxc1 {[%clk 0:02:56]} 12. Rxc1 {[%clk 0:02:54]}  h6 {[%clk 0:02:56]} 13. O-O {[%clk 0:02:50]}  Nd7 {[%clk 0:02:55]} 14. b3 {[%clk 0:02:49]}  O-O {[%clk 0:02:42]} 15. Nd1 {[%clk 0:02:49]}  Rb8 {[%clk 0:02:25]} 16. Qe2 {[%clk 0:02:45]}  Ne7 {[%clk 0:02:18]} 17. Ne3 {[%clk 0:02:44]}  Nf6 {[%clk 0:02:16]} 18. Kh2 {[%clk 0:02:41]}  Qd7 {[%clk 0:02:16]} 19. f4 {[%clk 0:02:37]}  exf4 {[%clk 0:02:12]} 20. gxf4 {[%clk 0:02:36]}  Rfe8 {[%clk 0:02:12]} 21. c4 {[%clk 0:02:24]}  Kh8 {[%clk 0:01:56]} 22. Qg2 {[%clk 0:02:18]}  Ng6 {[%clk 0:01:54]} 23. Nf5 {[%clk 0:02:14]}  Rg8 {[%clk 0:01:42]} 24. Rce1 {[%clk 0:01:54]}  Rbe8 {[%clk 0:01:39]} 25. Qf3 {[%clk 0:01:41]}  h5 {[%clk 0:01:29]} 26. Rg1 {[%clk 0:01:32]}  Rgf8 {[%clk 0:01:13]} 27. Rg5 {[%clk 0:01:29]}  b5 {[%clk 0:00:54]} 28. axb5 {[%clk 0:01:25]}  axb5 {[%clk 0:00:54]} 29. Reg1 {[%clk 0:01:25]}  bxc4 {[%clk 0:00:53]} 30. bxc4 {[%clk 0:01:25]}  Qb7 {[%clk 0:00:33]} 31. Nxd6 {[%clk 0:01:07]}  Qb2+ {[%clk 0:00:30]} 32. R1g2 {[%clk 0:01:07]}  Qc1 {[%clk 0:00:25]} 33. Nxe8 {[%clk 0:01:03]}  Rxe8 {[%clk 0:00:25]} 34. e5 {[%clk 0:00:43]}  Ng4+ {[%clk 0:00:24]} 35. R5xg4 {[%clk 0:00:35]}  hxg4 {[%clk 0:00:23]} 36. Qxg4 {[%clk 0:00:36]}  Qxf4+ {[%clk 0:00:22]} 37. Qxf4 {[%clk 0:00:27]}  Nxf4 {[%clk 0:00:23]} 38. Rd2 {[%clk 0:00:23]}  Rxe5 {[%clk 0:00:20]} 39. Bf1 {[%clk 0:00:23]}  Re8 {[%clk 0:00:20]} 40. d6 {[%clk 0:00:20]}  Rd8 {[%clk 0:00:20]} 41. Kg3 {[%clk 0:00:21]}  Ne6 {[%clk 0:00:20]} 42. Bh3 {[%clk 0:00:22]}  Nd4 {[%clk 0:00:20]} 43. d7 {[%clk 0:00:22]}  f5 {[%clk 0:00:18]} 44. Kf4 {[%clk 0:00:21]}  g6 {[%clk 0:00:18]} 45. h5 {[%clk 0:00:20]}  Kg7 {[%clk 0:00:18]} 46. Rg2 {[%clk 0:00:17]}  Rxd7 {[%clk 0:00:16]} 47. Rxg6+ {[%clk 0:00:18]}  Kh7 {[%clk 0:00:16]} 48. Rf6 {[%clk 0:00:16]}  Re7 {[%clk 0:00:15]} 49. Bxf5+ {[%clk 0:00:16]}  Nxf5 {[%clk 0:00:15]} 50. Rxf5 {[%clk 0:00:16]}  Kh6 {[%clk 0:00:16]} 51. Rxc5 {[%clk 0:00:16]}  Rd7 {[%clk 0:00:16]} 52. Ke4 {[%clk 0:00:16]}  Rd1 {[%clk 0:00:15]} 53. Rd5 {[%clk 0:00:15]}  Rc1 {[%clk 0:00:15]} 54. c5 {[%clk 0:00:16]}  Rc2 {[%clk 0:00:14]} 55. Kd3 {[%clk 0:00:14]}  Rc1 {[%clk 0:00:14]} 56. Kd4 {[%clk 0:00:14]}  Rd1+ {[%clk 0:00:14]} 57. Ke5 {[%clk 0:00:14]}  Rc1 {[%clk 0:00:12]} 58. Kd6 {[%clk 0:00:14]}  Kg7 {[%clk 0:00:12]} 59. c6 {[%clk 0:00:14]}  Kf7 {[%clk 0:00:12]} 60. Kd7 {[%clk 0:00:14]}  Kg7 {[%clk 0:00:11]} 61. c7 {[%clk 0:00:14]}  Rxc7+ {[%clk 0:00:09]} 62. Kxc7 {[%clk 0:00:14]}  Kh6 {[%clk 0:00:10]} 63. Kd6 {[%clk 0:00:14]}  Kg7 {[%clk 0:00:11]} 64. Ke6 {[%clk 0:00:15]}  Kh6 {[%clk 0:00:11]} 65. Kf6 {[%clk 0:00:15]}  Kh7 {[%clk 0:00:12]} 66. Rg5 {[%clk 0:00:15]}  Kh6 {[%clk 0:00:13]} 67. Kf5 {[%clk 0:00:15]}  Kh7 {[%clk 0:00:13]} 68. Rg6 {[%clk 0:00:15]}  Kh8 {[%clk 0:00:13]} 69. Kf6 {[%clk 0:00:16]}  Kh7 {[%clk 0:00:14]} 70. Kf7 {[%clk 0:00:16]}  Kh8 {[%clk 0:00:15]} 71. Rh6# {[%clk 0:00:16]} 1-0


[Site "https://www.chess.com"]

[Event "Titled Tuesday Blitz May 4 2021"]
[White "Terletsky, Oleg"]
[Black "elcandado"]
[WhiteFideId "14116774"]
[WhiteElo "2094"]
[BlackElo "2585"]
[Result "1-0"]
[Round "04"]
[TimeControl "180+1"]
[Date "2021.05.04"]
[WhiteClock "0:00:21"]
[BlackClock "0:00:05"]

1. e4 {[%clk 0:03:00]}  e5 {[%clk 0:02:59]} 2. Nf3 {[%clk 0:02:59]}  Nc6 {[%clk 0:02:58]} 3. Nc3 {[%clk 0:02:59]}  Nf6 {[%clk 0:02:58]} 4. d4 {[%clk 0:02:59]}  exd4 {[%clk 0:02:58]} 5. Nxd4 {[%clk 0:03:00]}  Bb4 {[%clk 0:02:56]} 6. Nxc6 {[%clk 0:03:00]}  bxc6 {[%clk 0:02:57]} 7. Bd3 {[%clk 0:03:00]}  d5 {[%clk 0:02:57]} 8. exd5 {[%clk 0:03:01]}  O-O {[%clk 0:02:57]} 9. O-O {[%clk 0:03:01]}  Bg4 {[%clk 0:02:57]} 10. f3 {[%clk 0:03:02]}  Bh5 {[%clk 0:02:57]} 11. dxc6 {[%clk 0:03:02]}  Qd4+ {[%clk 0:02:53]} 12. Kh1 {[%clk 0:03:01]}  Bxc3 {[%clk 0:02:54]} 13. bxc3 {[%clk 0:03:00]}  Qxc3 {[%clk 0:02:54]} 14. Bf4 {[%clk 0:02:58]}  Qxc6 {[%clk 0:02:48]} 15. Qd2 {[%clk 0:02:58]}  Bg6 {[%clk 0:02:45]} 16. Qa5 {[%clk 0:02:56]}  Nd5 {[%clk 0:02:29]} 17. Bg3 {[%clk 0:02:56]}  Rfd8 {[%clk 0:02:20]} 18. Rfd1 {[%clk 0:02:23]}  Ne3 {[%clk 0:01:50]} 19. Rdc1 {[%clk 0:01:55]}  Nd5 {[%clk 0:01:14]} 20. Rd1 {[%clk 0:01:49]}  h5 {[%clk 0:00:58]} 21. Bxg6 {[%clk 0:01:32]}  fxg6 {[%clk 0:00:59]} 22. c4 {[%clk 0:01:19]}  Nb6 {[%clk 0:00:49]} 23. Qg5 {[%clk 0:01:09]}  Rxd1+ {[%clk 0:00:43]} 24. Rxd1 {[%clk 0:01:09]}  Nxc4 {[%clk 0:00:38]} 25. Rc1 {[%clk 0:01:04]}  Qe6 {[%clk 0:00:29]} 26. Qc5 {[%clk 0:00:57]}  Nd6 {[%clk 0:00:13]} 27. Re1 {[%clk 0:00:54]}  Qxa2 {[%clk 0:00:10]} 28. Qxc7 {[%clk 0:00:50]}  Nf5 {[%clk 0:00:08]} 29. Be5 {[%clk 0:00:37]}  Re8 {[%clk 0:00:06]} 30. g4 {[%clk 0:00:33]}  hxg4 {[%clk 0:00:05]} 31. fxg4 {[%clk 0:00:32]}  Qd5+ {[%clk 0:00:05]} 32. Kg1 {[%clk 0:00:31]}  Ne7 {[%clk 0:00:01]} 33. Qd6 {[%clk 0:00:26]}  Qxd6 {[%clk 0:00:01]} 34. Bxd6 {[%clk 0:00:26]}  Kf7 {[%clk 0:00:02]} 35. Bxe7 {[%clk 0:00:20]}  Rxe7 {[%clk 0:00:02]} 36. Ra1 {[%clk 0:00:20]}  Ke8 {[%clk 0:00:02]} 37. Ra6 {[%clk 0:00:18]}  Kd8 {[%clk 0:00:02]} 38. Rxg6 {[%clk 0:00:18]}  Kc7 {[%clk 0:00:02]} 39. Ra6 {[%clk 0:00:18]}  Kb7 {[%clk 0:00:03]} 40. Ra3 {[%clk 0:00:18]}  a6 {[%clk 0:00:03]} 41. Kg2 {[%clk 0:00:18]}  Kb6 {[%clk 0:00:04]} 42. Kg3 {[%clk 0:00:19]}  a5 {[%clk 0:00:04]} 43. Kf4 {[%clk 0:00:19]}  Kb5 {[%clk 0:00:04]} 44. h4 {[%clk 0:00:19]}  Kb4 {[%clk 0:00:05]} 45. Ra1 {[%clk 0:00:19]}  a4 {[%clk 0:00:05]} 46. h5 {[%clk 0:00:19]}  a3 {[%clk 0:00:06]} 47. g5 {[%clk 0:00:20]}  Kb3 {[%clk 0:00:06]} 48. h6 {[%clk 0:00:20]}  Kb2 {[%clk 0:00:07]} 49. Rxa3 {[%clk 0:00:20]}  Kxa3 {[%clk 0:00:06]} 50. h7 {[%clk 0:00:20]}  Re8 {[%clk 0:00:06]} 51. Kf5 {[%clk 0:00:21]}  Kb4 {[%clk 0:00:04]} 52. Kg6 {[%clk 0:00:22]}  Kc5 {[%clk 0:00:05]} 53. Kf7 {[%clk 0:00:21]}  Rc8 {[%clk 0:00:04]} 54. Kxg7 {[%clk 0:00:21]}  Rc7+ {[%clk 0:00:04]} 55. Kg8 {[%clk 0:00:21]}  Rc8+ {[%clk 0:00:04]} 56. Kg7 {[%clk 0:00:20]}  Rc7+ {[%clk 0:00:05]} 57. Kh6 {[%clk 0:00:21]}  Rc8 {[%clk 0:00:05]} 58. g6 {[%clk 0:00:21]}  Kd5 {[%clk 0:00:04]} 59. g7 {[%clk 0:00:22]}  Rc6+ {[%clk 0:00:05]} 60. Kg5 {[%clk 0:00:21]}  Ke6 {[%clk 0:00:05]} 61. g8=Q+ {[%clk 0:00:21]} 1-0


[Site "https://www.chess.com"]

[Event "Titled Tuesday Blitz May 4 2021"]
[White "TigrVShlyape"]
[Black "Rodin, Mihail"]
[BlackFideId "4113160"]
[WhiteElo "2829"]
[BlackElo "2368"]
[Result "1-0"]
[Round "04"]
[TimeControl "180+1"]
[Date "2021.05.04"]
[WhiteClock "0:00:12"]
[BlackClock "0:00:15"]

1. e4 {[%clk 0:02:55]}  e5 {[%clk 0:03:00]} 2. Nf3 {[%clk 0:02:54]}  Nc6 {[%clk 0:03:00]} 3. Bb5 {[%clk 0:02:53]}  a6 {[%clk 0:03:00]} 4. Ba4 {[%clk 0:02:49]}  Bc5 {[%clk 0:03:00]} 5. O-O {[%clk 0:02:48]}  Nge7 {[%clk 0:03:00]} 6. Nxe5 {[%clk 0:02:37]}  Nxe5 {[%clk 0:02:59]} 7. d4 {[%clk 0:02:36]}  b5 {[%clk 0:03:00]} 8. Bb3 {[%clk 0:02:34]}  Bxd4 {[%clk 0:03:01]} 9. Qxd4 {[%clk 0:02:34]}  d6 {[%clk 0:03:02]} 10. c3 {[%clk 0:02:29]}  c5 {[%clk 0:03:02]} 11. Qd1 {[%clk 0:02:21]}  c4 {[%clk 0:03:02]} 12. Bc2 {[%clk 0:02:21]}  O-O {[%clk 0:03:01]} 13. Bg5 {[%clk 0:02:14]}  f6 {[%clk 0:02:51]} 14. Bh4 {[%clk 0:02:05]}  Kh8 {[%clk 0:02:37]} 15. Nd2 {[%clk 0:01:57]}  N7g6 {[%clk 0:02:30]} 16. Bg3 {[%clk 0:01:56]}  f5 {[%clk 0:02:31]} 17. f4 {[%clk 0:01:15]}  Ng4 {[%clk 0:02:07]} 18. Qf3 {[%clk 0:00:57]}  Qb6+ {[%clk 0:02:01]} 19. Kh1 {[%clk 0:00:55]}  Qe3 {[%clk 0:01:56]} 20. Rad1 {[%clk 0:00:36]}  Qxf3 {[%clk 0:01:50]} 21. Rxf3 {[%clk 0:00:35]}  Bb7 {[%clk 0:01:34]} 22. Re1 {[%clk 0:00:32]}  Rae8 {[%clk 0:01:30]} 23. Rff1 {[%clk 0:00:31]}  fxe4 {[%clk 0:01:22]} 24. Bxe4 {[%clk 0:00:28]}  d5 {[%clk 0:01:16]} 25. Bxg6 {[%clk 0:00:25]}  hxg6 {[%clk 0:01:16]} 26. Nf3 {[%clk 0:00:26]}  Ne3 {[%clk 0:01:08]} 27. Rf2 {[%clk 0:00:22]}  Nf5 {[%clk 0:01:08]} 28. Rfe2 {[%clk 0:00:22]}  Rxe2 {[%clk 0:01:07]} 29. Rxe2 {[%clk 0:00:22]}  Rd8 {[%clk 0:01:07]} 30. Bf2 {[%clk 0:00:20]}  Nd6 {[%clk 0:00:59]} 31. Bd4 {[%clk 0:00:20]}  Ne4 {[%clk 0:00:59]} 32. Re1 {[%clk 0:00:20]}  Kg8 {[%clk 0:00:58]} 33. g3 {[%clk 0:00:21]}  Bc8 {[%clk 0:00:58]} 34. Kg2 {[%clk 0:00:21]}  Bf5 {[%clk 0:00:48]} 35. h3 {[%clk 0:00:21]}  Nf6 {[%clk 0:00:45]} 36. g4 {[%clk 0:00:20]}  Be4 {[%clk 0:00:45]} 37. Kg3 {[%clk 0:00:20]}  Rf8 {[%clk 0:00:43]} 38. Ng5 {[%clk 0:00:19]}  Re8 {[%clk 0:00:39]} 39. a3 {[%clk 0:00:19]}  Kf8 {[%clk 0:00:35]} 40. Nf3 {[%clk 0:00:18]}  Ke7 {[%clk 0:00:34]} 41. Ne5 {[%clk 0:00:18]}  Kd6 {[%clk 0:00:33]} 42. Nf7+ {[%clk 0:00:18]}  Kc6 {[%clk 0:00:32]} 43. Ng5 {[%clk 0:00:17]}  Kd7 {[%clk 0:00:28]} 44. h4 {[%clk 0:00:17]}  a5 {[%clk 0:00:28]} 45. Nf3 {[%clk 0:00:16]}  b4 {[%clk 0:00:28]} 46. Ne5+ {[%clk 0:00:16]}  Kd6 {[%clk 0:00:27]} 47. axb4 {[%clk 0:00:17]}  axb4 {[%clk 0:00:27]} 48. cxb4 {[%clk 0:00:17]}  Rb8 {[%clk 0:00:24]} 49. Bc5+ {[%clk 0:00:17]}  Kc7 {[%clk 0:00:25]} 50. Nf3 {[%clk 0:00:16]}  Bxf3 {[%clk 0:00:24]} 51. Kxf3 {[%clk 0:00:15]}  Ne4 {[%clk 0:00:25]} 52. Bd4 {[%clk 0:00:15]}  Rxb4 {[%clk 0:00:23]} 53. Bxg7 {[%clk 0:00:15]}  Rb3+ {[%clk 0:00:23]} 54. Re3 {[%clk 0:00:15]}  Rb4 {[%clk 0:00:23]} 55. h5 {[%clk 0:00:15]}  gxh5 {[%clk 0:00:22]} 56. gxh5 {[%clk 0:00:15]}  Kd7 {[%clk 0:00:21]} 57. h6 {[%clk 0:00:15]}  Nd6 {[%clk 0:00:17]} 58. h7 {[%clk 0:00:15]}  Nf7 {[%clk 0:00:18]} 59. h8=Q {[%clk 0:00:14]}  Nxh8 {[%clk 0:00:18]} 60. Bxh8 {[%clk 0:00:15]}  Rb8 {[%clk 0:00:17]} 61. Bd4 {[%clk 0:00:13]}  Rc8 {[%clk 0:00:16]} 62. Kg4 {[%clk 0:00:14]}  Rf8 {[%clk 0:00:16]} 63. f5 {[%clk 0:00:13]}  Kc6 {[%clk 0:00:16]} 64. f6 {[%clk 0:00:13]}  Kd7 {[%clk 0:00:17]} 65. Kf5 {[%clk 0:00:13]}  Kd6 {[%clk 0:00:17]} 66. Kg6 {[%clk 0:00:12]}  Rg8+ {[%clk 0:00:17]} 67. Kf5 {[%clk 0:00:12]}  Rf8 {[%clk 0:00:15]} 68. Re6+ {[%clk 0:00:12]}  Kd7 {[%clk 0:00:16]} 69. Re7+ {[%clk 0:00:12]}  Kd6 {[%clk 0:00:16]} 70. Kg6 {[%clk 0:00:12]}  Rg8+ {[%clk 0:00:15]} 71. Rg7 {[%clk 0:00:12]}  Rf8 {[%clk 0:00:15]} 72. f7 {[%clk 0:00:12]} 1-0


[Site "https://www.chess.com"]

[Event "Titled Tuesday Blitz May 4 2021"]
[White "Todorovic, Bojan"]
[Black "Manukian, Artak"]
[WhiteFideId "917087"]
[BlackFideId "13301373"]
[WhiteElo "2266"]
[BlackElo "2470"]
[Result "0-1"]
[Round "04"]
[TimeControl "180+1"]
[Date "2021.05.04"]
[WhiteClock "0:00:26"]
[BlackClock "0:02:04"]

1. Nf3 {[%clk 0:03:00]}  g6 {[%clk 0:02:57]} 2. d4 {[%clk 0:02:57]}  Bg7 {[%clk 0:02:57]} 3. g3 {[%clk 0:02:55]}  c5 {[%clk 0:02:56]} 4. d5 {[%clk 0:02:53]}  Nf6 {[%clk 0:02:54]} 5. Bg2 {[%clk 0:02:52]}  O-O {[%clk 0:02:51]} 6. O-O {[%clk 0:02:51]}  d6 {[%clk 0:02:51]} 7. c4 {[%clk 0:02:46]}  b5 {[%clk 0:02:50]} 8. cxb5 {[%clk 0:02:41]}  a6 {[%clk 0:02:50]} 9. bxa6 {[%clk 0:02:28]}  Bxa6 {[%clk 0:02:42]} 10. Nc3 {[%clk 0:02:26]}  Nbd7 {[%clk 0:02:42]} 11. h3 {[%clk 0:02:26]}  Nb6 {[%clk 0:02:39]} 12. Re1 {[%clk 0:02:25]}  Nfd7 {[%clk 0:02:36]} 13. Qc2 {[%clk 0:02:06]}  Rb8 {[%clk 0:02:34]} 14. Rb1 {[%clk 0:01:57]}  Qc7 {[%clk 0:02:27]} 15. b3 {[%clk 0:01:54]}  c4 {[%clk 0:02:23]} 16. b4 {[%clk 0:01:20]}  Ne5 {[%clk 0:02:12]} 17. Nd2 {[%clk 0:00:50]}  Bc8 {[%clk 0:02:11]} 18. a4 {[%clk 0:00:45]}  Nbd7 {[%clk 0:02:06]} 19. f4 {[%clk 0:00:34]}  Nd3 {[%clk 0:02:05]} 20. exd3 {[%clk 0:00:28]}  cxd3 {[%clk 0:02:05]} 21. Qxd3 {[%clk 0:00:28]}  Qxc3 {[%clk 0:02:05]} 22. Qxc3 {[%clk 0:00:27]}  Bxc3 {[%clk 0:02:05]} 23. Ne4 {[%clk 0:00:26]}  Bxe1 {[%clk 0:02:04]} 0-1


[Site "https://www.chess.com"]